[Event "Queens Festival Final Team 2022"]
[Site "Tornelo"]
[Date "2022.06.26"]
[Round "7.4"]
[White "Kosgey Sheila Jerop"]
[Black "Yellamraju, Aparna"]
[Result "0-1"]
[ECO "A08"]
[WhiteElo "1242"]
[BlackElo "1720"]
[Annotator "NA RC"]
[PlyCount "72"]
[EventDate "2022.06.24"]
[EventType "team-tourn"]
[EventCountry "NET"]
[SourceTitle "playchess.com"]
[Source "ChessBase"]
[SourceQuality "1"]
[WhiteTeam "Kenya"]
[BlackTeam "United States"]
[WhiteTeamCountry "KEN"]
[BlackTeamCountry "USA"]
[TimeControl "180+2"]

1. e4 {[%emt 0:00:02]} e6 {[%emt 0:00:04]} 2. d3 {[%emt 0:00:03]} d5 {[%emt 0:00:01]} 3. Nd2 {[%emt 0:00:02]} c5 {[%emt 0:00:04]} 4. Ngf3 {[%emt 0:00:02]} Nc6 {[%emt 0:00:06]} 5. g3 {[%emt 0:00:02]} Bd6 {[%emt 0:00:06]} 6. Bg2 {[%emt 0:00:02]} Nge7 {[%emt 0:00:02]} 7. O-O {[%emt 0:00:02]} O-O {[%emt 0:00:02]} 8. Re1 {[%emt 0:00:02]} a6 {[%emt 0:00:04]} 9. Nf1 {[%emt 0:00:02]} b5 {[%emt 0:00:07]} 10. exd5 {[%emt 0:00:13]} exd5 {[%emt 0:00:02]} 11. h4 {[%emt 0:00:05]} Bb7 {[%emt 0:00:04]} 12. N1h2 {[%emt 0:00:02]} d4 {[%emt 0:00:06]} 13. Bg5 {[%emt 0:00:05]} f6 {[%emt 0:00:05]} 14. Bd2 {[%emt 0:00:12]} Qc7 {[%emt 0:00:04]} 15. c3 {[%emt 0:00:04]} dxc3 {[%emt 0:00:03]} 16. Bxc3 {[%emt 0:00:03]} Kh8 {[%emt 0:00:10]} 17. a3 {[%emt 0:00:04]} Rad8 {[%emt 0:00:05]} 18. Ng4 {[%emt 0:00:13]} Nf5 {[%emt 0:00:10]} 19. Qc2 {[%emt 0:00:20]} Nfd4 {[%emt 0:00:10]} 20. Nxd4 {[%emt 0:00:11]} cxd4 {[%emt 0:00:13]} 21. Bb4 {[%emt 0:00:28]} Nxb4 {[%emt 0:00:20]} 22. Qxc7 {[%emt 0:00:04]} Bxc7 {[%emt 0:00:02]} 23. Bxb7 {[%emt 0:00:03]} Nxd3 {[%emt 0:00:03]} 24. Re7 {[%emt 0:00:10]} Bd6 {[%emt 0:00:06]} 25. Re4 {[%emt 0:00:08]} Nc5 {[%emt 0:00:02]} 26. Rxd4 {[%emt 0:00:38]} Nxb7 {[%emt 0:00:03]} 27. Rad1 {[%emt 0:00:06]} Be5 {[%emt 0:00:18]} 28. Nxe5 {[%emt 0:00:12]} fxe5 {[%emt 0:00:04]} 29. Rd5 {[%emt 0:00:03]} Rxd5 {[%emt 0:00:02]} 30. Rxd5 {[%emt 0:00:03]} Re8 {[%emt 0:00:02]} 31. Kf1 {[%emt 0:00:04]} Kg8 {[%emt 0:00:02]} 32. Ke2 {[%emt 0:00:02]} Na5 {[%emt 0:00:02]} 33. Rd6 {[%emt 0:00:03]} Nc4 {[%emt 0:00:05]} 34. Rxa6 {[%emt 0:00:04]} Nxb2 {[%emt 0:00:01]} 35. Ra5 {[%emt 0:00:02]} Nc4 {[%emt 0:00:02]} 36. Kd3 {[%emt 0:00:06]} Nxa5 {[%emt 0:00:02]} 0-1

[Event "Queens Festival Final Team 2022"]
[Site "Tornelo"]
[Date "2022.06.26"]
[Round "7.5"]
[White "Vujcic, Milena"]
[Black "Moshoboro Arona"]
[Result "1-0"]
[ECO "C02"]
[WhiteElo "1987"]
[BlackElo "1555"]
[Annotator "NA RC"]
[PlyCount "69"]
[EventDate "2022.06.24"]
[EventType "team-tourn"]
[EventCountry "NET"]
[SourceTitle "playchess.com"]
[Source "ChessBase"]
[SourceQuality "1"]
[WhiteTeam "Serbia"]
[BlackTeam "Botswana"]
[WhiteTeamCountry "SRB"]
[BlackTeamCountry "BOT"]
[TimeControl "180+2"]

1. e4 {[%emt 0:00:02]} e6 {[%emt 0:00:05]} 2. d4 {[%emt 0:00:03]} d5 {[%emt 0:00:02]} 3. e5 {[%emt 0:00:03]} Bd7 {[%emt 0:00:03]} 4. c3 {[%emt 0:00:05]} a6 {[%emt 0:00:02]} 5. f4 {[%emt 0:00:04]} Bb5 {[%emt 0:00:03]} 6. Bd3 {[%emt 0:00:04]} Ne7 {[%emt 0:00:04]} 7. Nf3 {[%emt 0:00:04]} Nf5 {[%emt 0:00:08]} 8. O-O {[%emt 0:00:04]} Be7 {[%emt 0:00:08]} 9. a4 {[%emt 0:00:03]} Bxd3 {[%emt 0:00:04]} 10. Qxd3 {[%emt 0:00:02]} c5 {[%emt 0:00:03]} 11. Be3 {[%emt 0:00:04]} c4 {[%emt 0:00:05]} 12. Qd2 {[%emt 0:00:02]} Nc6 {[%emt 0:00:02]} 13. g4 {[%emt 0:00:03]} Nxe3 {[%emt 0:00:10]} 14. Qxe3 {[%emt 0:00:02]} O-O {[%emt 0:00:08]} 15. Nbd2 {[%emt 0:00:02]} Qd7 {[%emt 0:00:09]} 16. Kg2 {[%emt 0:00:11]} f6 {[%emt 0:00:07]} 17. Rf2 {[%emt 0:00:07]} fxe5 {[%emt 0:00:05]} 18. fxe5 {[%emt 0:00:02]} Rf7 {[%emt 0:00:03]} 19. Nf1 {[%emt 0:00:02]} Raf8 {[%emt 0:00:02]} 20. Ng3 {[%emt 0:00:02]} Rf4 {[%emt 0:00:09]} 21. h3 {[%emt 0:00:02]} Qd8 {[%emt 0:00:07]} 22. Raf1 {[%emt 0:00:04]} Qb6 {[%emt 0:00:10]} 23. Nh5 {[%emt 0:00:04]} R4f7 {[%emt 0:00:08]} 24. g5 {[%emt 0:00:14]} g6 {[%emt 0:00:05]} 25. Nf6+ {[%emt 0:00:03]} Bxf6 {[%emt 0:00:06]} 26. gxf6 {[%emt 0:00:03]} Qa5 {[%emt 0:00:06]} 27. Ng5 {[%emt 0:00:03]} Rd7 {[%emt 0:00:10]} 28. Nxe6 {[%emt 0:00:01]} Rff7 {[%emt 0:00:03]} 29. Qh6 {[%emt 0:00:05]} Qxa4 {[%emt 0:00:12]} 30. Ng5 {[%emt 0:00:02]} Rf8 {[%emt 0:00:04]} 31. f7+ {[%emt 0:00:04]} Rdxf7 {[%emt 0:00:07]} 32. Rxf7 {[%emt 0:00:09]} Qc2+ {[%emt 0:00:11]} 33. R7f2 {[%emt 0:00:03]} Rxf2+ {[%emt 0:00:05]} 34. Rxf2 {[%emt 0:00:01]} Qd3 {[%emt 0:00:24]} 35. Qxh7# {[%emt 0:00:03]} 1-0

[Event "Queens Festival Final Team 2022"]
[Site "Tornelo"]
[Date "2022.06.26"]
[Round "7.5"]
[White "Francis, Onkemetse"]
[Black "Vukosavljevic, Tatjana"]
[Result "0-1"]
[ECO "C42"]
[WhiteElo "1777"]
[BlackElo "1758"]
[Annotator "NA RC"]
[PlyCount "104"]
[EventDate "2022.06.24"]
[EventType "team-tourn"]
[EventCountry "NET"]
[SourceTitle "playchess.com"]
[Source "ChessBase"]
[SourceQuality "1"]
[WhiteTeam "Botswana"]
[BlackTeam "Serbia"]
[WhiteTeamCountry "BOT"]
[BlackTeamCountry "SRB"]
[TimeControl "180+2"]

1. e4 {[%emt 0:00:02]} e5 {[%emt 0:00:05]} 2. Nf3 {[%emt 0:00:03]} Nf6 {[%emt 0:00:02]} 3. Nxe5 {[%emt 0:00:03]} d6 {[%emt 0:00:01]} 4. Nf3 {[%emt 0:00:01]} Nxe4 {[%emt 0:00:01]} 5. Nc3 {[%emt 0:00:03]} Nxc3 {[%emt 0:00:02]} 6. dxc3 {[%emt 0:00:01]} Be7 {[%emt 0:00:01]} 7. Bd3 {[%emt 0:00:03]} O-O {[%emt 0:00:03]} 8. O-O {[%emt 0:00:03]} Nd7 {[%emt 0:00:04]} 9. h3 {[%emt 0:00:02]} Nc5 {[%emt 0:00:03]} 10. Be2 {[%emt 0:00:07]} Bf6 {[%emt 0:00:09]} 11. Be3 {[%emt 0:00:02]} Ne6 {[%emt 0:00:14]} 12. Re1 {[%emt 0:00:04]} Re8 {[%emt 0:00:02]} 13. Qd2 {[%emt 0:00:14]} Bd7 {[%emt 0:00:09]} 14. Rad1 {[%emt 0:00:03]} Bc6 {[%emt 0:00:02]} 15. Nh2 {[%emt 0:00:05]} Bg5 {[%emt 0:00:18]} 16. Bf3 {[%emt 0:00:05]} Bxe3 {[%emt 0:00:11]} 17. Rxe3 {[%emt 0:00:03]} Qd7 {[%emt 0:00:09]} 18. Rde1 {[%emt 0:00:06]} Nc5 {[%emt 0:00:05]} 19. Bxc6 {[%emt 0:00:17]} Qxc6 {[%emt 0:00:02]} 20. Nf3 {[%emt 0:00:03]} h6 {[%emt 0:00:07]} 21. Nd4 {[%emt 0:00:04]} Qd7 {[%emt 0:00:03]} 22. Rg3 {[%emt 0:00:10]} Rxe1+ {[%emt 0:00:09]} 23. Qxe1 {[%emt 0:00:02]} Re8 {[%emt 0:00:08]} 24. Qc1 {[%emt 0:00:03]} Kh8 {[%emt 0:00:13]} 25. Re3 {[%emt 0:00:15]} c6 {[%emt 0:00:08]} 26. b4 {[%emt 0:00:15]} Na4 {[%emt 0:00:26]} 27. Qe1 {[%emt 0:00:11]} Rxe3 {[%emt 0:00:08]} 28. Qxe3 {[%emt 0:00:02]} Nb6 {[%emt 0:00:01]} 29. Qe2 {[%emt 0:00:11]} Nd5 {[%emt 0:00:05]} 30. Qf3 {[%emt 0:00:19]} Qe7 {[%emt 0:00:18]} 31. Nf5 {[%emt 0:00:13]} Qe1+ {[%emt 0:00:03]} 32. Kh2 {[%emt 0:00:02]} Qe5+ {[%emt 0:00:07]} 33. Kg1 {[%emt 0:00:07]} Qe1+ {[%emt 0:00:03]} 34. Kh2 {[%emt 0:00:02]} Qe5+ {[%emt 0:00:01]} 35. Kg1 {[%emt 0:00:02]} Nxc3 {[%emt 0:00:02]} 36. a3 {[%emt 0:00:11]} d5 {[%emt 0:00:04]} 37. Qg4 {[%emt 0:00:09]} Ne4 {[%emt 0:00:07]} 38. Ne3 {[%emt 0:00:13]} Nf6 {[%emt 0:00:03]} 39. Qc8+ {[%emt 0:00:02]} Kh7 {[%emt 0:00:02]} 40. Qxb7 {[%emt 0:00:03]} Qa1+ {[%emt 0:00:02]} 41. Kh2 {[%emt 0:00:03]} Qxa3 {[%emt 0:00:04]} 42. Qxc6 {[%emt 0:00:02]} Qxb4 {[%emt 0:00:02]} 43. Qxd5 {[%emt 0:00:02]} Qf4+ {[%emt 0:00:03]} 44. Kg1 {[%emt 0:00:04]} Ne4 {[%emt 0:00:03]} 45. Qf5+ {[%emt 0:00:04]} Qxf5 {[%emt 0:00:02]} 46. Nxf5 {[%emt 0:00:02]} a5 {[%emt 0:00:02]} 47. f3 {[%emt 0:00:01]} Nc3 {[%emt 0:00:02]} 48. Nd4 {[%emt 0:00:03]} a4 {[%emt 0:00:02]} 49. Kf2 {[%emt 0:00:06]} Kg6 {[%emt 0:00:01]} 50. Ke3 {[%emt 0:00:04]} Kf6 {[%emt 0:00:01]} 51. Kd3 {[%emt 0:00:01]} Nb1 {[%emt 0:00:03]} 52. Kc4 {[%emt 0:00:06]} Ke5 {[%emt 0:00:04]} 0-1

[Event "Queens Festival Final Team 2022"]
[Site "Tornelo"]
[Date "2022.06.26"]
[Round "7.5"]
[White "Marape, Naledi"]
[Black "Maksimovic, Suzana"]
[Result "0-1"]
[ECO "B28"]
[WhiteElo "1707"]
[BlackElo "2145"]
[Annotator "RC"]
[PlyCount "62"]
[EventDate "2022.06.24"]
[EventType "team-tourn"]
[EventCountry "NET"]
[SourceTitle "playchess.com"]
[Source "ChessBase"]
[SourceQuality "1"]
[WhiteTeam "Botswana"]
[BlackTeam "Serbia"]
[WhiteTeamCountry "BOT"]
[BlackTeamCountry "SRB"]
[TimeControl "180+2"]

1. e4 {[%emt 0:00:02]} c5 {[%emt 0:00:05]} 2. Nf3 {[%emt 0:00:06]} a6 {[%emt 0:00:02]} 3. d4 {[%emt 0:00:03]} cxd4 {[%emt 0:00:03]} 4. Nxd4 {[%emt 0:00:03]} e5 {[%emt 0:00:02]} 5. Nb3 {[%emt 0:00:10]} Nf6 {[%emt 0:00:03]} 6. Nc3 {[%emt 0:00:03]} Bb4 {[%emt 0:00:03]} 7. Bg5 {[%emt 0:00:05]} h6 {[%emt 0:00:13]} 8. Bxf6 {[%emt 0:00:04]} Bxc3+ {[%emt 0:00:07]} 9. bxc3 {[%emt 0:00:04]} Qxf6 {[%emt 0:00:03]} 10. Qd5 {[%emt 0:00:05]} O-O {[%emt 0:00:03]} 11. Bc4 {[%emt 0:00:07]} d6 {[%emt 0:00:05]} 12. Rd1 {[%emt 0:00:04]} Rd8 {[%emt 0:00:07]} 13. Nc5 {[%emt 0:00:13]} Nc6 {[%emt 0:00:08]} 14. Nb3 {[%emt 0:00:23]} Qg6 {[%emt 0:00:42]} 15. O-O {[%emt 0:00:21]} Bh3 {[%emt 0:00:19]} 16. Qxf7+ {[%emt 0:00:05]} Qxf7 {[%emt 0:00:02]} 17. Bxf7+ {[%emt 0:00:05]} Kxf7 {[%emt 0:00:02]} 18. gxh3 {[%emt 0:00:03]} Ke6 {[%emt 0:00:05]} 19. Rd3 {[%emt 0:00:21]} Rf8 {[%emt 0:00:04]} 20. Rfd1 {[%emt 0:00:04]} Rad8 {[%emt 0:00:01]} 21. Nc5+ {[%emt 0:00:08]} dxc5 {[%emt 0:00:04]} 22. Rd5 {[%emt 0:00:15]} b6 {[%emt 0:00:03]} 23. a3 {[%emt 0:00:16]} Ke7 {[%emt 0:00:11]} 24. a4 {[%emt 0:00:09]} Rxd5 {[%emt 0:00:05]} 25. exd5 {[%emt 0:00:04]} Na5 {[%emt 0:00:03]} 26. d6+ {[%emt 0:00:06]} Kd7 {[%emt 0:00:01]} 27. Rd5 {[%emt 0:00:05]} Rf6 {[%emt 0:00:07]} 28. Rxe5 {[%emt 0:00:12]} Rxd6 {[%emt 0:00:01]} 29. Re3 {[%emt 0:00:05]} Nc4 {[%emt 0:00:06]} 30. Rd3 {[%emt 0:00:05]} Rxd3 {[%emt 0:00:04]} 31. cxd3 {[%emt 0:00:06]} Nb2 {[%emt 0:00:01]} 0-1

[Event "Queens Festival Final Team 2022"]
[Site "Tornelo"]
[Date "2022.06.26"]
[Round "7.5"]
[White "Vujovic, Vera"]
[Black "Banda Natalie Katlo"]
[Result "1-0"]
[ECO "B17"]
[WhiteElo "1353"]
[BlackElo "1629"]
[Annotator "NA RC"]
[PlyCount "89"]
[EventDate "2022.06.24"]
[EventType "team-tourn"]
[EventCountry "NET"]
[SourceTitle "playchess.com"]
[Source "ChessBase"]
[SourceQuality "1"]
[WhiteTeam "Serbia"]
[BlackTeam "Botswana"]
[WhiteTeamCountry "SRB"]
[BlackTeamCountry "BOT"]
[TimeControl "180+2"]

1. e4 {[%emt 0:00:02]} c6 {[%emt 0:00:05]} 2. d4 {[%emt 0:00:02]} d5 {[%emt 0:00:02]} 3. Nc3 {[%emt 0:00:02]} dxe4 {[%emt 0:00:02]} 4. Nxe4 {[%emt 0:00:01]} Nd7 {[%emt 0:00:01]} 5. c3 {[%emt 0:00:04]} Ngf6 {[%emt 0:00:02]} 6. Nxf6+ {[%emt 0:00:02]} Nxf6 {[%emt 0:00:02]} 7. Nf3 {[%emt 0:00:02]} e6 {[%emt 0:00:02]} 8. Bd3 {[%emt 0:00:02]} c5 {[%emt 0:00:02]} 9. O-O {[%emt 0:00:03]} b6 {[%emt 0:00:07]} 10. Bb5+ {[%emt 0:00:06]} Bd7 {[%emt 0:00:04]} 11. Bxd7+ {[%emt 0:00:08]} Qxd7 {[%emt 0:00:02]} 12. Be3 {[%emt 0:00:03]} Nd5 {[%emt 0:00:04]} 13. Qe2 {[%emt 0:00:15]} Nxe3 {[%emt 0:00:06]} 14. fxe3 {[%emt 0:00:01]} cxd4 {[%emt 0:00:03]} 15. exd4 {[%emt 0:00:02]} Bd6 {[%emt 0:00:03]} 16. Rf2 {[%emt 0:00:36]} O-O {[%emt 0:00:08]} 17. Raf1 {[%emt 0:00:03]} Qc7 {[%emt 0:00:08]} 18. g3 {[%emt 0:00:23]} Rae8 {[%emt 0:00:15]} 19. Ng5 {[%emt 0:00:04]} Re7 {[%emt 0:00:20]} 20. Ne4 {[%emt 0:00:36]} e5 {[%emt 0:00:15]} 21. Qg4 {[%emt 0:00:20]} Kh8 {[%emt 0:00:40]} 22. Ng5 {[%emt 0:00:14]} h6 {[%emt 0:00:39]} 23. Qh5 {[%emt 0:00:09]} Kg8 {[%emt 0:00:04]} 24. Nf3 {[%emt 0:00:11]} e4 {[%emt 0:00:06]} 25. Nh4 {[%emt 0:00:03]} e3 {[%emt 0:00:13]} 26. Re2 {[%emt 0:00:02]} Bxg3 {[%emt 0:00:06]} 27. hxg3 {[%emt 0:00:04]} Qxg3+ {[%emt 0:00:04]} 28. Ng2 {[%emt 0:00:02]} g6 {[%emt 0:00:06]} 29. Qf3 {[%emt 0:00:03]} Qxf3 {[%emt 0:00:02]} 30. Rxf3 {[%emt 0:00:02]} Kg7 {[%emt 0:00:01]} 31. Rfxe3 {[%emt 0:00:01]} Rxe3 {[%emt 0:00:03]} 32. Nxe3 {[%emt 0:00:02]} Re8 {[%emt 0:00:02]} 33. Nf5+ {[%emt 0:00:02]} gxf5 {[%emt 0:00:05]} 34. Rxe8 {[%emt 0:00:02]} Kf6 {[%emt 0:00:02]} 35. Ra8 {[%emt 0:00:02]} Kg6 {[%emt 0:00:02]} 36. Rxa7 {[%emt 0:00:01]} h5 {[%emt 0:00:02]} 37. Ra6 {[%emt 0:00:01]} Kg5 {[%emt 0:00:01]} 38. Rxb6 {[%emt 0:00:02]} f4 {[%emt 0:00:02]} 39. Rb7 {[%emt 0:00:02]} f5 {[%emt 0:00:02]} 40. d5 {[%emt 0:00:01]} h4 {[%emt 0:00:02]} 41. d6 {[%emt 0:00:01]} f3 {[%emt 0:00:01]} 42. d7 {[%emt 0:00:01]} h3 {[%emt 0:00:02]} 43. d8=Q+ {[%emt 0:00:02]} Kg4 {[%emt 0:00:02]} 44. Rg7+ {[%emt 0:00:03]} Kf4 {[%emt 0:00:01]} 45. Qd4# {[%emt 0:00:01]} 1-0

[Event "Queens Festival Final Team 2022"]
[Site "Tornelo"]
[Date "2022.06.26"]
[Round "7.6"]
[White "Shriyan santosh Priyasha"]
[Black "Ismayil, Malak"]
[Result "0-1"]
[ECO "E10"]
[WhiteElo "1597"]
[BlackElo "2001"]
[Annotator "NA RC"]
[PlyCount "144"]
[EventDate "2022.06.24"]
[EventType "team-tourn"]
[EventCountry "NET"]
[SourceTitle "playchess.com"]
[Source "ChessBase"]
[SourceQuality "1"]
[WhiteTeam "MAW"]
[BlackTeam "Azerbaijan"]
[BlackTeamCountry "AZE"]
[TimeControl "180+2"]

1. Nf3 {[%emt 0:00:02]} Nf6 {[%emt 0:00:04]} 2. d4 {[%emt 0:00:01]} e6 {[%emt 0:00:02]} 3. g3 {[%emt 0:00:01]} Be7 {[%emt 0:00:04]} 4. Bg2 {[%emt 0:00:02]} O-O {[%emt 0:00:01]} 5. c4 {[%emt 0:00:01]} d6 {[%emt 0:00:01]} 6. O-O {[%emt 0:00:01]} Nc6 {[%emt 0:00:02]} 7. Nc3 {[%emt 0:00:02]} e5 {[%emt 0:00:01]} 8. d5 {[%emt 0:00:04]} Nb8 {[%emt 0:00:02]} 9. e4 {[%emt 0:00:02]} Bg4 {[%emt 0:00:02]} 10. h3 {[%emt 0:00:02]} Bxf3 {[%emt 0:00:01]} 11. Qxf3 {[%emt 0:00:00]} a5 {[%emt 0:00:03]} 12. a3 {[%emt 0:00:03]} Na6 {[%emt 0:00:01]} 13. Be3 {[%emt 0:00:05]} Nd7 {[%emt 0:00:06]} 14. Qe2 {[%emt 0:00:07]} Bg5 {[%emt 0:00:21]} 15. f4 {[%emt 0:00:15]} Bf6 {[%emt 0:00:01]} 16. Rad1 {[%emt 0:00:10]} Qe7 {[%emt 0:00:11]} 17. Kh2 {[%emt 0:00:07]} exf4 {[%emt 0:00:05]} 18. gxf4 {[%emt 0:00:03]} Bxc3 {[%emt 0:00:01]} 19. bxc3 {[%emt 0:00:04]} Nac5 {[%emt 0:00:02]} 20. Bd4 {[%emt 0:00:09]} Rae8 {[%emt 0:00:03]} 21. Rde1 {[%emt 0:00:05]} f6 {[%emt 0:00:05]} 22. Rg1 {[%emt 0:00:05]} Kh8 {[%emt 0:00:02]} 23. Bf3 {[%emt 0:00:14]} f5 {[%emt 0:00:42]} 24. Bxg7+ {[%emt 0:00:15]} Qxg7 {[%emt 0:00:03]} 25. Rxg7 {[%emt 0:00:00]} Kxg7 {[%emt 0:00:01]} 26. Rg1+ {[%emt 0:00:02]} Kh8 {[%emt 0:00:04]} 27. Qb2 {[%emt 0:00:30]} fxe4 {[%emt 0:00:04]} 28. Bg4 {[%emt 0:00:03]} Nb6 {[%emt 0:00:05]} 29. Qg2 {[%emt 0:00:12]} Rg8 {[%emt 0:00:15]} 30. Qe2 {[%emt 0:00:03]} Nd3 {[%emt 0:00:17]} 31. Qe3 {[%emt 0:00:07]} Rg7 {[%emt 0:00:12]} 32. Qd4 {[%emt 0:00:07]} Nxf4 {[%emt 0:00:05]} 33. Be6 {[%emt 0:00:25]} Nh5 {[%emt 0:00:11]} 34. Bf7 {[%emt 0:00:06]} Re5 {[%emt 0:00:04]} 35. Bxh5 {[%emt 0:00:03]} Rxg1 {[%emt 0:00:05]} 36. Kxg1 {[%emt 0:00:06]} Kg7 {[%emt 0:00:02]} 37. c5 {[%emt 0:00:01]} Nd7 {[%emt 0:00:03]} 38. cxd6 {[%emt 0:00:03]} cxd6 {[%emt 0:00:02]} 39. Bg4 {[%emt 0:00:02]} Nf6 {[%emt 0:00:06]} 40. Qb6 {[%emt 0:00:05]} Rxd5 {[%emt 0:00:04]} 41. Qxb7+ {[%emt 0:00:02]} Kg6 {[%emt 0:00:04]} 42. Qc8 {[%emt 0:00:11]} Rc5 {[%emt 0:00:09]} 43. Qe6 {[%emt 0:00:07]} h5 {[%emt 0:00:10]} 44. Be2 {[%emt 0:00:06]} Rxc3 {[%emt 0:00:06]} 45. Qxd6 {[%emt 0:00:03]} Rxh3 {[%emt 0:00:05]} 46. Qd2 {[%emt 0:00:06]} Rg3+ {[%emt 0:00:03]} 47. Kf2 {[%emt 0:00:02]} Rxa3 {[%emt 0:00:03]} 48. Ke1 {[%emt 0:00:01]} Ra1+ {[%emt 0:00:02]} 49. Kf2 {[%emt 0:00:02]} Ra3 {[%emt 0:00:01]} 50. Qd6 {[%emt 0:00:02]} Ra2 {[%emt 0:00:07]} 51. Qg3+ {[%emt 0:00:02]} Kh6 {[%emt 0:00:03]} 52. Qb3 {[%emt 0:00:01]} Ra1 {[%emt 0:00:04]} 53. Qe3+ {[%emt 0:00:01]} Kg6 {[%emt 0:00:02]} 54. Qd4 {[%emt 0:00:01]} Ra3 {[%emt 0:00:03]} 55. Qc5 {[%emt 0:00:02]} Rh3 {[%emt 0:00:02]} 56. Qe5 {[%emt 0:00:02]} Rh4 {[%emt 0:00:01]} 57. Ke1 {[%emt 0:00:02]} Rh1+ {[%emt 0:00:02]} 58. Kd2 {[%emt 0:00:03]} Rg1 {[%emt 0:00:01]} 59. Qc3 {[%emt 0:00:01]} Rg5 {[%emt 0:00:01]} 60. Qe3 {[%emt 0:00:01]} h4 {[%emt 0:00:02]} 61. Qd4 {[%emt 0:00:01]} Rd5 {[%emt 0:00:01]} 62. Qxd5 {[%emt 0:00:03]} Nxd5 {[%emt 0:00:02]} 63. Bg4 {[%emt 0:00:01]} Kg5 {[%emt 0:00:02]} 64. Bh3 {[%emt 0:00:02]} Kf4 {[%emt 0:00:01]} 65. Kc2 {[%emt 0:00:02]} Kg3 {[%emt 0:00:01]} 66. Be6 {[%emt 0:00:03]} h3 {[%emt 0:00:01]} 67. Bxd5 {[%emt 0:00:02]} Kf3 {[%emt 0:00:01]} 68. Kd2 {[%emt 0:00:02]} h2 {[%emt 0:00:02]} 69. Kc3 {[%emt 0:00:03]} h1=Q {[%emt 0:00:02]} 70. Kd4 {[%emt 0:00:00]} Qd1+ {[%emt 0:00:02]} 71. Ke5 {[%emt 0:00:01]} Qxd5+ {[%emt 0:00:02]} 72. Kxd5 {[%emt 0:00:00]} e3 {[%emt 0:00:01]} 0-1

[Event "Queens Festival Final Team 2022"]
[Site "Tornelo"]
[Date "2022.06.26"]
[Round "7.6"]
[White "Nkhoma, Desiderata"]
[Black "Khalilova, Khadija"]
[Result "0-1"]
[ECO "B87"]
[WhiteElo "1465"]
[BlackElo "1777"]
[Annotator "NA RC"]
[PlyCount "112"]
[EventDate "2022.06.24"]
[EventType "team-tourn"]
[EventCountry "NET"]
[SourceTitle "playchess.com"]
[Source "ChessBase"]
[SourceQuality "1"]
[WhiteTeam "MAW"]
[BlackTeam "Azerbaijan"]
[BlackTeamCountry "AZE"]
[TimeControl "180+2"]

1. e4 {[%emt 0:00:02]} c5 {[%emt 0:00:05]} 2. Nf3 {[%emt 0:00:04]} d6 {[%emt 0:00:01]} 3. d4 {[%emt 0:00:02]} cxd4 {[%emt 0:00:02]} 4. Nxd4 {[%emt 0:00:02]} Nf6 {[%emt 0:00:02]} 5. Nc3 {[%emt 0:00:03]} a6 {[%emt 0:00:01]} 6. Be3 {[%emt 0:00:02]} e6 {[%emt 0:00:02]} 7. f3 {[%emt 0:00:04]} Be7 {[%emt 0:00:02]} 8. Bc4 {[%emt 0:00:03]} Qc7 {[%emt 0:00:01]} 9. Bb3 {[%emt 0:00:05]} b5 {[%emt 0:00:02]} 10. Qe2 {[%emt 0:00:17]} b4 {[%emt 0:00:05]} 11. Na4 {[%emt 0:00:06]} O-O {[%emt 0:00:10]} 12. O-O-O {[%emt 0:00:03]} Bb7 {[%emt 0:00:04]} 13. Kb1 {[%emt 0:00:08]} Nbd7 {[%emt 0:00:05]} 14. g4 {[%emt 0:00:06]} Nc5 {[%emt 0:00:02]} 15. Nxc5 {[%emt 0:00:14]} dxc5 {[%emt 0:00:02]} 16. g5 {[%emt 0:00:16]} Nd7 {[%emt 0:00:11]} 17. g6 {[%emt 0:00:08]} hxg6 {[%emt 0:00:08]} 18. Qc4 {[%emt 0:00:06]} Ne5 {[%emt 0:00:11]} 19. Nxe6 {[%emt 0:00:11]} Nxc4 {[%emt 0:00:12]} 20. Nxc7 {[%emt 0:00:05]} Nxe3 {[%emt 0:00:03]} 21. Nxa8 {[%emt 0:00:02]} Nxd1 {[%emt 0:00:02]} 22. Rxd1 {[%emt 0:00:04]} Bxa8 {[%emt 0:00:02]} 23. Rd7 {[%emt 0:00:07]} Rd8 {[%emt 0:00:02]} 24. Rxd8+ {[%emt 0:00:10]} Bxd8 {[%emt 0:00:02]} 25. c3 {[%emt 0:00:04]} a5 {[%emt 0:00:03]} 26. cxb4 {[%emt 0:00:04]} cxb4 {[%emt 0:00:03]} 27. a3 {[%emt 0:00:02]} Kf8 {[%emt 0:00:02]} 28. axb4 {[%emt 0:00:07]} axb4 {[%emt 0:00:01]} 29. Kc2 {[%emt 0:00:03]} f5 {[%emt 0:00:02]} 30. Bd5 {[%emt 0:00:09]} Bxd5 {[%emt 0:00:03]} 31. exd5 {[%emt 0:00:04]} Bf6 {[%emt 0:00:05]} 32. b3 {[%emt 0:00:04]} Ke7 {[%emt 0:00:02]} 33. h3 {[%emt 0:00:02]} Kd6 {[%emt 0:00:02]} 34. Kd2 {[%emt 0:00:08]} Kxd5 {[%emt 0:00:01]} 35. Kd3 {[%emt 0:00:02]} g5 {[%emt 0:00:03]} 36. Kd2 {[%emt 0:00:05]} Kd4 {[%emt 0:00:02]} 37. Kc2 {[%emt 0:00:03]} Ke3 {[%emt 0:00:02]} 38. Kd1 {[%emt 0:00:04]} Kxf3 {[%emt 0:00:02]} 39. Kd2 {[%emt 0:00:02]} Kg3 {[%emt 0:00:01]} 40. Kd3 {[%emt 0:00:02]} f4 {[%emt 0:00:02]} 41. Kc4 {[%emt 0:00:03]} Bc3 {[%emt 0:00:02]} 42. Kd5 {[%emt 0:00:05]} f3 {[%emt 0:00:02]} 43. Ke6 {[%emt 0:00:03]} f2 {[%emt 0:00:01]} 44. Kf5 {[%emt 0:00:05]} f1=Q+ {[%emt 0:00:03]} 45. Kg6 {[%emt 0:00:03]} Qf6+ {[%emt 0:00:04]} 46. Kh7 {[%emt 0:00:03]} Qh6+ {[%emt 0:00:01]} 47. Kg8 {[%emt 0:00:04]} g6 {[%emt 0:00:02]} 48. Kf7 {[%emt 0:00:09]} Qg7+ {[%emt 0:00:04]} 49. Ke6 {[%emt 0:00:03]} Qe5+ {[%emt 0:00:03]} 50. Kf7 {[%emt 0:00:03]} Qf6+ {[%emt 0:00:02]} 51. Ke8 {[%emt 0:00:05]} Qg7 {[%emt 0:00:03]} 52. h4 {[%emt 0:00:05]} gxh4 {[%emt 0:00:02]} 53. Kd8 {[%emt 0:00:05]} Kf4 {[%emt 0:00:02]} 54. Ke8 {[%emt 0:00:03]} Ke5 {[%emt 0:00:02]} 55. Kd8 {[%emt 0:00:04]} Kd6 {[%emt 0:00:01]} 56. Kc8 {[%emt 0:00:03]} Qc7# {[%emt 0:00:03]} 0-1